fUSD/lending_fUSD_20260614
["ID","MTS","AMOUNT","RATE_DAILY","PERIOD"]
[425051315,1781447456000,-500.0,0.00027671,8]
[425051314,1781447456000,-500.0,0.00027671,8]
[425051316,1781447456000,-500.0,0.00027671,8]
[425051310,1781447456000,-500.0,0.00027671,8]
[425051312,1781447456000,-500.0,0.00027671,8]
[425051311,1781447456000,-500.0,0.00027671,8]
[425051317,1781447456000,-608.15,0.00027671,8]
[425051321,1781447456000,-1222.28,0.00027671,8]
[425051320,1781447456000,-500.0,0.00027671,8]
[425051319,1781447456000,-1189.57,0.00027671,8]
[425051328,1781447456000,-1452.09,0.00027671,8]
[425051324,1781447456000,-500.0,0.00027671,8]
[425051325,1781447456000,-500.0,0.00027671,8]
[425051318,1781447456000,-500.0,0.00027671,8]
[425051322,1781447456000,-500.0,0.00027671,8]
[425051326,1781447456000,-500.0,0.00027671,8]
[425051323,1781447456000,-500.0,0.00027671,8]
[425051346,1781447456000,-500.0,0.00027671,8]
[425051358,1781447456000,-500.0,0.00027671,8]
[425051343,1781447456000,-159.790427,0.00027671,8]
[425051373,1781447456000,-500.0,0.00027671,8]
[425051374,1781447456000,-1037.86,0.00027671,8]
[425051377,1781447456000,-773.85,0.00027671,8]
[425051376,1781447456000,-235.95292827,0.00027671,8]
[425051378,1781447456000,-2107.14,0.00027671,8]
[425051379,1781447456000,-1207.41,0.00027671,8]
[425051380,1781447456000,-500.0,0.00027671,8]
[425051382,1781447456000,-500.0,0.00027671,8]
[425051383,1781447456000,-500.0,0.00027671,8]
[425051385,1781447456000,-500.0,0.00027671,8]
[425051384,1781447456000,-508.13,0.00027671,8]
[425051388,1781447456000,-1099.99,0.00027671,8]
[425051386,1781447456000,-500.0,0.00027671,8]
[425051387,1781447456000,-586.53,0.00027671,8]
[425051390,1781447456000,-500.0,0.00027671,8]
[425051345,1781447456000,-500.0,0.00027671,8]
[425051389,1781447456000,-899.88,0.00027671,8]
[425051372,1781447456000,-500.0,0.00027671,8]
[425051375,1781447456000,-500.0,0.00027671,8]
[425051381,1781447456000,-766.55,0.00027671,8]
[425051370,1781447456000,-500.0,0.00027671,8]
[425051353,1781447456000,-500.0,0.00027671,8]
[425051354,1781447456000,-500.0,0.00027671,8]
[425051371,1781447456000,-500.0,0.00027671,8]
[425051355,1781447456000,-1604.32,0.00027671,8]
[425051352,1781447456000,-500.0,0.00027671,8]
[425051356,1781447456000,-500.0,0.00027671,8]
[425051357,1781447456000,-1015.25,0.00027671,8]
[425051360,1781447456000,-500.0,0.00027671,8]
[425051361,1781447456000,-500.0,0.00027671,8]
[425051359,1781447456000,-664.01,0.00027671,8]
[425051362,1781447456000,-500.0,0.00027671,8]
[425051364,1781447456000,-500.0,0.00027671,8]
[425051366,1781447456000,-500.0,0.00027671,8]
[425051365,1781447456000,-500.0,0.00027671,8]
[425051368,1781447456000,-500.0,0.00027671,8]
[425051367,1781447456000,-500.0,0.00027671,8]
[425051369,1781447456000,-500.0,0.00027671,8]
[425051363,1781447456000,-1047.49,0.00027671,8]
[425051414,1781447457000,-500.0,0.00027671,8]
[425051412,1781447457000,-928.24,0.00027671,2]
[425051418,1781447457000,-500.0,0.00027671,8]
[425051417,1781447457000,-806.88,0.00027671,8]
[425051416,1781447457000,-500.0,0.00027671,8]
[425051415,1781447457000,-853.99,0.00027671,8]
[425051419,1781447457000,-500.0,0.00027671,8]
[425051421,1781447457000,-500.0,0.00027671,8]
[425051426,1781447457000,-500.0,0.00027671,8]
[425051423,1781447457000,-500.0,0.00027671,8]
[425051420,1781447457000,-544.6,0.00027671,8]
[425051424,1781447457000,-866.85,0.00027671,8]
[425051427,1781447457000,-500.0,0.00027671,8]
[425051428,1781447457000,-500.0,0.00027671,8]
[425051429,1781447457000,-500.0,0.00027671,8]
[425051430,1781447457000,-815.68,0.00027671,8]
[425051410,1781447457000,-500.0,0.00027671,8]
[425051422,1781447457000,-2153.84,0.00027671,8]
[425051413,1781447457000,-500.0,0.00027671,8]
[425051393,1781447457000,-500.0,0.00027671,8]
[425051409,1781447457000,-638.31,0.00027671,8]
[425051431,1781447457000,-500.0,0.00027671,8]
[425051391,1781447457000,-671.88,0.00027671,8]
[425051392,1781447457000,-1425.15,0.00027671,8]
[425051394,1781447457000,-1195.63,0.00027671,8]
[425051395,1781447457000,-1398.15,0.00027671,8]
[425051397,1781447457000,-841.95,0.00027671,8]
[425051399,1781447457000,-500.0,0.00027671,8]
[425051396,1781447457000,-520.02,0.00027671,8]
[425051411,1781447457000,-510.28,0.00027671,8]
[425051398,1781447457000,-282.92059593,0.00027671,8]
[425051402,1781447457000,-500.0,0.00027671,8]
[425051400,1781447457000,-500.0,0.00027671,8]
[425051403,1781447457000,-500.0,0.00027671,8]
[425051404,1781447457000,-1132.03,0.00027671,8]
[425051405,1781447457000,-554.77,0.00027671,8]
[425051408,1781447457000,-500.0,0.00027671,8]
[425051406,1781447457000,-500.0,0.00027671,7]
[425051407,1781447457000,-607.25,0.00027671,8]
[425051401,1781447457000,-500.0,0.00027671,8]
[425051432,1781447457000,-500.0,0.00027671,8]
[425051425,1781447457000,-500.0,0.00027671,8]
[425051440,1781447457000,-790.09,0.00027671,8]
[425051456,1781447457000,-500.0,0.00027671,8]
[425051461,1781447457000,-597.42,0.00027671,8]
[425051457,1781447457000,-500.0,0.00027671,8]
[425051459,1781447457000,-543.72,0.00027671,8]
[425051460,1781447457000,-1022.53,0.00027671,8]
[425051458,1781447457000,-500.0,0.00027671,8]
[425051463,1781447457000,-500.0,0.00027671,8]
[425051465,1781447457000,-500.0,0.00027671,8]
[425051462,1781447457000,-500.0,0.00027671,8]
[425051466,1781447457000,-1193.0,0.00027671,8]
[425051467,1781447457000,-573.76,0.00027671,8]
[425051471,1781447457000,-500.0,0.00027671,8]
[425051464,1781447457000,-500.0,0.00027671,8]
[425051472,1781447457000,-1254.7,0.00027671,8]
[425051469,1781447457000,-500.0,0.00027671,8]
[425051473,1781447457000,-500.0,0.00027671,8]
[425051474,1781447457000,-500.0,0.00027671,8]
[425051434,1781447457000,-500.0,0.00027671,8]
[425051468,1781447457000,-500.0,0.00027671,8]
[425051455,1781447457000,-500.0,0.00027671,8]
[425051470,1781447457000,-500.0,0.00027671,8]
[425051453,1781447457000,-500.0,0.00027671,8]
[425051436,1781447457000,-500.0,0.00027671,8]
[425051454,1781447457000,-500.0,0.00027671,8]
[425051433,1781447457000,-556.37,0.00027671,8]
[425051435,1781447457000,-500.0,0.00027671,8]
[425051437,1781447457000,-500.0,0.00027671,8]
[425051439,1781447457000,-500.0,0.00027671,8]
[425051441,1781447457000,-500.0,0.00027671,8]
[425051444,1781447457000,-1217.4,0.00027671,8]
[425051445,1781447457000,-648.3,0.00027671,8]
[425051438,1781447457000,-500.0,0.00027671,8]
[425051448,1781447457000,-500.0,0.00027671,8]
[425051449,1781447457000,-500.0,0.00027671,8]
[425051446,1781447457000,-500.0,0.00027671,8]
[425051442,1781447457000,-534.02,0.00027671,8]
[425051450,1781447457000,-500.0,0.00027671,8]
[425051447,1781447457000,-500.0,0.00027671,8]
[425051443,1781447457000,-520.69,0.00027671,8]
[425051451,1781447457000,-500.0,0.00027671,8]
[425051452,1781447457000,-500.0,0.00027671,8]
[425051497,1781447458000,-500.0,0.00027671,8]
[425051504,1781447458000,-715.69,0.00027671,8]
[425051505,1781447458000,-1046.11,0.00027671,8]
[425051498,1781447458000,-639.31,0.00027671,8]
[425051501,1781447458000,-504.6,0.00027671,8]
[425051502,1781447458000,-500.0,0.00027671,8]
[425051506,1781447458000,-500.0,0.00027671,8]
[425051503,1781447458000,-533.2,0.00027671,8]
[425051507,1781447458000,-892.45,0.00027671,8]
[425051518,1781447458000,-500.0,0.00027671,8]
[425051508,1781447458000,-500.0,0.00027671,8]
[425051511,1781447458000,-500.0,0.00027671,8]
[425051510,1781447458000,-500.0,0.00027671,8]
[425051512,1781447458000,-500.0,0.00027671,8]
[425051514,1781447458000,-500.0,0.00027671,8]
[425051515,1781447458000,-500.0,0.00027671,8]
[425051516,1781447458000,-500.0,0.00027671,8]
[425051517,1781447458000,-312.58806101,0.00027671,8]
[425051499,1781447458000,-623.88,0.00027671,8]
[425051509,1781447458000,-566.53,0.00027671,8]
[425051496,1781447458000,-500.0,0.00027671,8]
[425051478,1781447458000,-723.54,0.00027671,8]
[425051495,1781447458000,-500.0,0.00027671,8]
[425051475,1781447458000,-500.0,0.00027671,8]
[425051482,1781447458000,-500.0,0.00027671,8]
[425051520,1781447458000,-714.38,0.00027671,8]
[425051479,1781447458000,-1746.88,0.00027671,8]
[425051481,1781447458000,-500.0,0.00027671,8]
[425051477,1781447458000,-542.64108367,0.00027671,8]
[425051476,1781447458000,-689.06,0.00027671,8]
[425051483,1781447458000,-500.0,0.00027671,8]
[425051480,1781447458000,-500.0,0.00027671,8]
[425051500,1781447458000,-500.0,0.00027671,8]
[425051485,1781447458000,-500.0,0.00027671,8]
[425051484,1781447458000,-784.28,0.00027671,8]
[425051492,1781447458000,-500.0,0.00027671,8]
[425051487,1781447458000,-363.3719176,0.00027671,8]
[425051490,1781447458000,-500.0,0.00027671,8]
[425051491,1781447458000,-500.0,0.00027671,8]
[425051488,1781447458000,-500.0,0.00027671,8]
[425051486,1781447458000,-872.27,0.00027671,8]
[425051489,1781447458000,-559.91,0.00027671,8]
[425051494,1781447458000,-500.0,0.00027671,8]
[425051493,1781447458000,-500.0,0.00027671,8]
[425051523,1781447458000,-529.52,0.00027671,8]
[425051513,1781447458000,-500.0,0.00027671,8]
[425051521,1781447458000,-500.0,0.00027671,8]
[425051549,1781447458000,-500.0,0.00027671,8]
[425051545,1781447458000,-500.0,0.00027671,8]
[425051546,1781447458000,-1019.53,0.00027671,8]
[425051553,1781447458000,-770.14,0.00027671,8]
[425051550,1781447458000,-500.0,0.00027671,8]
[425051551,1781447458000,-500.0,0.00027671,8]
[425051552,1781447458000,-500.0,0.00027671,8]
[425051556,1781447458000,-500.0,0.00027671,8]
[425051554,1781447458000,-606.2,0.00027671,8]
[425051547,1781447458000,-500.0,0.00027671,8]
[425051564,1781447458000,-500.0,0.00027671,8]
[425051558,1781447458000,-500.0,0.00027671,8]
[425051555,1781447458000,-500.0,0.00027671,8]
[425051561,1781447458000,-500.0,0.00027671,8]
[425051562,1781447458000,-500.0,0.00027671,8]
[425051560,1781447458000,-500.0,0.00027671,8]
[425051559,1781447458000,-1236.08,0.00027671,8]
[425051565,1781447458000,-1086.15,0.00027671,8]
[425051566,1781447458000,-500.0,0.00027671,8]
[425051522,1781447458000,-1199.94,0.00027671,8]
[425051557,1781447458000,-648.66,0.00027671,8]
[425051542,1781447458000,-638.67,0.00027671,8]
[425051563,1781447458000,-500.0,0.00027671,8]
[425051548,1781447458000,-500.0,0.00027671,8]
[425051519,1781447458000,-500.0,0.00027671,8]
[425051544,1781447458000,-681.48,0.00027671,8]
[425051524,1781447458000,-500.0,0.00027671,8]
[425051526,1781447458000,-536.09,0.00027671,8]
[425051525,1781447458000,-500.0,0.00027671,8]
[425051528,1781447458000,-1220.66,0.00027671,8]
[425051529,1781447458000,-500.0,0.00027671,8]
[425051530,1781447458000,-500.0,0.00027671,8]
[425051531,1781447458000,-1992.83,0.00027671,8]
[425051532,1781447458000,-1285.7,0.00027671,8]
[425051527,1781447458000,-611.86,0.00027671,8]
[425051541,1781447458000,-577.76,0.00027671,8]
[425051536,1781447458000,-500.0,0.00027671,8]
[425051537,1781447458000,-500.0,0.00027671,8]
[425051540,1781447458000,-694.97,0.00027671,8]
[425051539,1781447458000,-500.0,0.00027671,8]
[425051535,1781447458000,-694.6,0.00027671,8]
[425051534,1781447458000,-500.0,0.00027671,8]
[425051533,1781447458000,-500.0,0.00027671,8]
[425051538,1781447458000,-500.0,0.00027671,8]
[425051543,1781447458000,-500.0,0.00027671,8]
[425051596,1781447459000,-1530.48,0.00027671,8]
[425051610,1781447459000,-500.0,0.00027671,8]
[425051602,1781447459000,-500.0,0.00027671,8]
[425051611,1781447459000,-500.0,0.00027671,8]
[425051603,1781447459000,-345.26077292,0.00027671,8]
[425051595,1781447459000,-500.0,0.00027671,8]
[425051594,1781447459000,-500.0,0.00027671,8]
[425051597,1781447459000,-500.0,0.00027671,8]
[425051592,1781447459000,-556.38,0.00027671,8]
[425051604,1781447459000,-500.0,0.00027671,8]
[425051601,1781447459000,-500.0,0.00027671,8]
[425051605,1781447459000,-500.0,0.00027671,8]
[425051615,1781447459000,-500.0,0.00027671,8]
[425051606,1781447459000,-500.0,0.00027671,8]
[425051607,1781447459000,-500.0,0.00027671,8]
[425051608,1781447459000,-836.13,0.00027671,8]
[425051613,1781447459000,-578.24,0.00027671,8]
[425051623,1781447459000,-500.0,0.00027671,8]
[425051614,1781447459000,-500.0,0.00027671,8]
[425051612,1781447459000,-1329.36,0.00027671,8]
[425051619,1781447459000,-500.0,0.00027671,8]
[425051622,1781447459000,-500.0,0.00027671,8]
[425051616,1781447459000,-500.0,0.00027671,8]
[425051618,1781447459000,-500.0,0.00027671,8]
[425051593,1781447459000,-932.78,0.00027671,8]
[425051609,1781447459000,-500.0,0.00027671,8]
[425051589,1781447459000,-710.6,0.00027671,8]
[425051573,1781447459000,-500.0,0.00027671,8]
[425051599,1781447459000,-500.0,0.00027671,8]
[425051617,1781447459000,-987.41,0.00027671,8]
[425051577,1781447459000,-1362.07,0.00027671,8]
[425051567,1781447459000,-500.0,0.00027671,8]
[425051568,1781447459000,-1794.38,0.00027671,8]
[425051572,1781447459000,-500.0,0.00027671,8]
[425051569,1781447459000,-752.56,0.00027671,8]
[425051570,1781447459000,-500.0,0.00027671,8]
[425051571,1781447459000,-500.0,0.00027671,8]
[425051574,1781447459000,-500.0,0.00027671,8]
[425051575,1781447459000,-500.0,0.00027671,8]
[425051576,1781447459000,-500.0,0.00027671,8]
[425051581,1781447459000,-1214.87,0.00027671,8]
[425051580,1781447459000,-500.0,0.00027671,8]
[425051582,1781447459000,-712.15,0.00027671,8]
[425051578,1781447459000,-500.0,0.00027671,8]
[425051579,1781447459000,-500.0,0.00027671,8]
[425051588,1781447459000,-500.0,0.00027671,8]
[425051587,1781447459000,-500.0,0.00027671,8]
[425051583,1781447459000,-310.28888859,0.00027671,8]
[425051585,1781447459000,-658.12,0.00027671,8]
[425051584,1781447459000,-500.0,0.00027671,8]
[425051586,1781447459000,-500.0,0.00027671,8]
[425051600,1781447459000,-500.0,0.00027671,8]
[425051590,1781447459000,-500.0,0.00027671,8]
[425051598,1781447459000,-500.0,0.00027671,8]
[425051591,1781447459000,-431.81804104,0.00027671,8]
[425051620,1781447459000,-500.0,0.00027671,8]
[425051680,1781447459000,-500.0,0.00027671,8]
[425051624,1781447459000,-747.07,0.00027671,8]
[425051655,1781447459000,-500.0,0.00027671,8]
[425051652,1781447459000,-500.0,0.00027671,8]
[425051654,1781447459000,-675.87,0.00027671,8]
[425051665,1781447459000,-845.18,0.00027671,8]
[425051666,1781447459000,-631.21,0.00027671,8]
[425051659,1781447459000,-1042.52,0.00027671,8]
[425051667,1781447459000,-500.0,0.00027671,8]
[425051660,1781447459000,-500.0,0.00027671,8]
[425051668,1781447459000,-500.0,0.00027671,8]
[425051658,1781447459000,-881.04,0.00027671,8]
[425051662,1781447459000,-702.19,0.00027671,8]
[425051664,1781447459000,-500.0,0.00027671,8]
[425051661,1781447459000,-642.31,0.00027671,8]
[425051663,1781447459000,-500.0,0.00027671,8]
[425051669,1781447459000,-500.0,0.00027671,8]
[425051672,1781447459000,-815.38,0.00027671,8]
[425051679,1781447459000,-628.32814026,0.00027671,8]
[425051678,1781447459000,-1150.58,0.00027671,8]
[425051677,1781447459000,-500.0,0.00027671,8]
[425051674,1781447459000,-500.0,0.00027671,8]
[425051675,1781447459000,-500.0,0.00027671,8]
[425051673,1781447459000,-500.0,0.00027671,8]
[425051676,1781447459000,-500.0,0.00027671,8]
[425051671,1781447459000,-500.0,0.00027671,8]
[425051621,1781447459000,-500.0,0.00027671,8]
[425051656,1781447459000,-500.0,0.00027671,8]
[425051650,1781447459000,-500.0,0.00027671,8]
[425051670,1781447459000,-729.66,0.00027671,8]
[425051653,1781447459000,-944.34,0.00027671,8]
[425051627,1781447459000,-500.0,0.00027671,8]
[425051628,1781447459000,-579.71,0.00027671,8]
[425051629,1781447459000,-500.0,0.00027671,8]
[425051631,1781447459000,-500.0,0.00027671,8]
[425051630,1781447459000,-500.0,0.00027671,8]
[425051626,1781447459000,-1199.11,0.00027671,8]
[425051625,1781447459000,-500.0,0.00027671,8]
[425051657,1781447459000,-500.0,0.00027671,8]
[425051633,1781447459000,-1016.47,0.00027671,8]
[425051634,1781447459000,-500.0,0.00027671,8]
[425051635,1781447459000,-1038.13,0.00027671,8]
[425051637,1781447459000,-586.63467762,0.00027671,8]
[425051647,1781447459000,-657.3,0.00027671,8]
[425051632,1781447459000,-500.0,0.00027671,8]
[425051638,1781447459000,-519.48,0.00027671,8]
[425051651,1781447459000,-663.09,0.00027671,8]
[425051636,1781447459000,-500.0,0.00027671,8]
[425051649,1781447459000,-1514.46,0.00027671,8]
[425051648,1781447459000,-500.0,0.00027671,8]
[425051645,1781447459000,-1068.73,0.00027671,8]
[425051644,1781447459000,-500.0,0.00027671,8]
[425051646,1781447459000,-500.0,0.00027671,8]
[425051641,1781447459000,-565.44,0.00027671,8]
[425051643,1781447459000,-500.0,0.00027671,8]
[425051640,1781447459000,-500.0,0.00027671,8]
[425051639,1781447459000,-856.87,0.00027671,8]
[425051642,1781447459000,-597.59,0.00027671,8]
[425051718,1781447460000,-500.0,0.00027671,8]
[425051727,1781447460000,-870.51,0.00027671,8]
[425051723,1781447460000,-594.68004971,0.00027671,8]
[425051716,1781447460000,-244.37863435,0.00027671,8]
[425051708,1781447460000,-869.12,0.00027671,8]
[425051709,1781447460000,-500.0,0.00027671,8]
[425051712,1781447460000,-500.0,0.00027671,8]
[425051710,1781447460000,-992.68,0.00027671,8]
[425051711,1781447460000,-500.0,0.00027671,8]
[425051713,1781447460000,-500.0,0.00027671,8]
[425051719,1781447460000,-3250.13,0.00027671,8]
[425051736,1781447460000,-553.44,0.00027671,8]
[425051726,1781447460000,-500.0,0.00027671,8]
[425051724,1781447460000,-641.52,0.00027671,8]
[425051721,1781447460000,-1539.52,0.00027671,8]
[425051717,1781447460000,-500.0,0.00027671,8]
[425051720,1781447460000,-500.0,0.00027671,8]
[425051725,1781447460000,-500.0,0.00027671,8]
[425051729,1781447460000,-500.0,0.00027671,8]
[425051738,1781447460000,-500.0,0.00027671,8]
[425051728,1781447460000,-500.0,0.00027671,8]
[425051730,1781447460000,-540.29,0.00027671,8]
[425051731,1781447460000,-692.78,0.00027671,8]
[425051707,1781447460000,-500.0,0.00027671,8]
[425051722,1781447460000,-500.0,0.00027671,8]
[425051715,1781447460000,-500.0,0.00027671,8]
[425051698,1781447460000,-616.02,0.00027671,8]
[425051705,1781447460000,-500.0,0.00027671,8]
[425051733,1781447460000,-743.01,0.00027671,8]
[425051691,1781447460000,-835.21,0.00027671,8]
[425051681,1781447460000,-500.0,0.00027671,8]
[425051683,1781447460000,-500.0,0.00027671,8]
[425051682,1781447460000,-532.23,0.00027671,8]
[425051684,1781447460000,-657.48,0.00027671,8]
[425051685,1781447460000,-564.84,0.00027671,8]
[425051687,1781447460000,-500.0,0.00027671,8]
[425051690,1781447460000,-500.0,0.00027671,8]
[425051688,1781447460000,-500.0,0.00027671,8]
[425051686,1781447460000,-648.15,0.00027671,8]
[425051689,1781447460000,-2000.0,0.00027671,2]
[425051692,1781447460000,-500.0,0.00027671,8]
[425051697,1781447460000,-3014.18,0.00027671,8]
[425051694,1781447460000,-500.0,0.00027671,8]
[425051696,1781447460000,-500.0,0.00027671,8]
[425051699,1781447460000,-500.0,0.00027671,8]
[425051700,1781447460000,-500.0,0.00027671,8]
[425051693,1781447460000,-500.0,0.00027671,8]
[425051703,1781447460000,-500.0,0.00027671,8]
[425051702,1781447460000,-500.0,0.00027671,8]
[425051695,1781447460000,-880.78,0.00027671,8]
[425051701,1781447460000,-500.0,0.00027671,8]
[425051704,1781447460000,-500.0,0.00027671,8]
[425051714,1781447460000,-1461.98,0.00027671,8]
[425051706,1781447460000,-176.90174396,0.00027671,8]
[425051732,1781447460000,-500.0,0.00027671,8]
[425051734,1781447460000,-500.0,0.00027671,8]
[425051776,1781447460000,-500.0,0.00027671,8]
[425051770,1781447460000,-500.0,0.00027671,8]
[425051769,1781447460000,-558.94,0.00027671,8]
[425051768,1781447460000,-500.0,0.00027671,8]
[425051767,1781447460000,-1169.04,0.00027671,8]
[425051775,1781447460000,-500.0,0.00027671,8]
[425051774,1781447460000,-500.0,0.00027671,8]
[425051773,1781447460000,-500.0,0.00027671,8]
[425051779,1781447460000,-702.01,0.00027671,8]
[425051777,1781447460000,-500.0,0.00027671,8]
[425051783,1781447460000,-502.0,0.00027671,8]
[425051780,1781447460000,-500.0,0.00027671,8]
[425051778,1781447460000,-720.7,0.00027671,8]
[425051782,1781447460000,-682.04,0.00027671,8]
[425051781,1781447460000,-2238.28,0.00027671,8]
[425051784,1781447460000,-500.0,0.00027671,8]
[425051786,1781447460000,-500.0,0.00027671,8]
[425051791,1781447460000,-2663.08,0.00027671,8]
[425051790,1781447460000,-500.0,0.00027671,8]
[425051788,1781447460000,-500.0,0.00027671,8]
[425051789,1781447460000,-966.37,0.00027671,8]
[425051793,1781447460000,-580.54,0.00027671,8]
[425051787,1781447460000,-500.0,0.00027671,8]
[425051785,1781447460000,-500.0,0.00027671,8]
[425051792,1781447460000,-2017.64,0.00027671,8]
[425051735,1781447460000,-1661.43,0.00027671,8]
[425051772,1781447460000,-605.88,0.00027671,8]
[425051771,1781447460000,-500.0,0.00027671,8]
[425051766,1781447460000,-500.0,0.00027671,8]
[425051762,1781447460000,-674.5,0.00027671,8]
[425051737,1781447460000,-500.0,0.00027671,8]
[425051739,1781447460000,-920.43,0.00027671,8]
[425051740,1781447460000,-500.0,0.00027671,8]
[425051741,1781447460000,-1059.33,0.00027671,8]
[425051743,1781447460000,-509.71,0.00027671,8]
[425051742,1781447460000,-500.0,0.00027671,8]
[425051748,1781447460000,-500.0,0.00027671,8]
[425051747,1781447460000,-605.61,0.00027671,8]
[425051765,1781447460000,-592.38,0.00027671,8]
[425051746,1781447460000,-662.85,0.00027671,8]
[425051744,1781447460000,-500.0,0.00027671,8]
[425051749,1781447460000,-500.0,0.00027671,8]
[425051751,1781447460000,-698.01,0.00027671,8]
[425051750,1781447460000,-500.0,0.00027671,8]
[425051745,1781447460000,-500.0,0.00027671,8]
[425051763,1781447460000,-1701.25,0.00027671,8]
[425051754,1781447460000,-152.12046224,0.00027671,8]
[425051758,1781447460000,-500.0,0.00027671,8]
[425051759,1781447460000,-500.0,0.00027671,8]
[425051755,1781447460000,-500.0,0.00027671,8]
[425051756,1781447460000,-172.73027497,0.00027671,8]
[425051752,1781447460000,-500.0,0.00027671,8]
[425051757,1781447460000,-500.0,0.00027671,8]
[425051760,1781447460000,-500.0,0.00027671,8]
[425051761,1781447460000,-500.0,0.00027671,8]
[425051764,1781447460000,-500.0,0.00027671,8]
[425051753,1781447460000,-2667.75,0.00027671,8]
[425051830,1781447461000,-940.15,0.00027671,8]
[425051839,1781447461000,-825.79,0.00027671,8]
[425051833,1781447461000,-10759.52,0.00027671,8]
[425051834,1781447461000,-314.87740431,0.00027671,8]
[425051832,1781447461000,-500.0,0.00027671,8]
[425051825,1781447461000,-500.0,0.00027671,8]
[425051829,1781447461000,-500.0,0.00027671,8]
[425051827,1781447461000,-500.0,0.00027671,8]
[425051821,1781447461000,-500.0,0.00027671,8]
[425051823,1781447461000,-877.23,0.00027671,8]
[425051835,1781447461000,-500.0,0.00027671,8]
[425051831,1781447461000,-500.0,0.00027671,8]
[425051840,1781447461000,-500.0,0.00027671,8]
[425051847,1781447461000,-500.0,0.00027671,8]
[425051838,1781447461000,-500.0,0.00027671,8]
[425051836,1781447461000,-679.83,0.00027671,8]
[425051842,1781447461000,-626.04,0.00027671,8]
[425051843,1781447461000,-500.0,0.00027671,8]
[425051852,1781447461000,-3026.85,0.00027671,8]
[425051841,1781447461000,-1116.26,0.00027671,8]
[425051845,1781447461000,-1082.98,0.00027671,8]
[425051844,1781447461000,-704.65,0.00027671,8]
[425051846,1781447461000,-500.0,0.00027671,8]
[425051851,1781447461000,-500.0,0.00027671,8]
[425051850,1781447461000,-500.0,0.00027671,8]
[425051828,1781447461000,-500.0,0.00027671,8]
[425051837,1781447461000,-1143.85,0.00027671,8]
[425051826,1781447461000,-1056.35,0.00027671,8]
[425051794,1781447461000,-623.6,0.00027671,8]
[425051824,1781447461000,-546.64,0.00027671,8]
[425051796,1781447461000,-550.82,0.00027671,8]
[425051795,1781447461000,-500.0,0.00027671,8]
[425051806,1781447461000,-500.0,0.00027671,8]
[425051797,1781447461000,-500.0,0.00027671,8]
[425051799,1781447461000,-500.0,0.00027671,8]
[425051798,1781447461000,-1157.66,0.00027671,8]
[425051802,1781447461000,-543.63,0.00027671,8]
[425051800,1781447461000,-842.22,0.00027671,8]